bitfinex-derivatives/quotes_BTCF0:USTF0_20210102
["timestamp","ask_amount","ask_price","bid_price","bid_amount"]
[1609614533597,4.88723158,33027.0,33025.0,0.00039216]
[1609614533899,4.88723158,33027.0,33026.0,0.00039216]
[1609614534299,5.88723158,33027.0,33023.0,1.72198535]
[1609614534500,2.18043158,33027.0,33023.0,1.72198535]
[1609614534700,2.18043158,33027.0,33024.0,0.00039215]
[1609614535301,0.00960785,33024.0,33023.0,1.72198535]
[1609614535501,1.16166785,33024.0,33023.0,1.72198535]
[1609614535703,1.16166785,33024.0,33023.0,1.72237757]
[1609614536903,0.1620399,33024.0,33023.0,0.73787757]
[1609614537104,3.8014399,33024.0,33023.0,0.73787757]
[1609614537507,4.8014399,33024.0,33023.0,0.73787757]
[1609614538105,3.8014399,33024.0,33010.0,2.18769763]
[1609614538704,0.00037214,33023.0,33011.0,0.00039231]
[1609614538905,0.01,33020.0,33011.0,0.00039231]
[1609614539207,0.18043158,33012.0,33011.0,0.00039231]
[1609614539407,0.99790158,33012.0,33011.0,0.00039231]
[1609614540510,0.99790158,33012.0,32984.0,0.03760423]
[1609614540710,0.99790158,33012.0,33011.0,0.00039231]
[1609614541110,0.99790158,33012.0,32985.0,0.00039231]
[1609614541310,0.18043158,32986.0,32983.0,2.20973924]
[1609614541510,0.18043158,32986.0,32985.0,0.0003923]
[1609614541911,0.18043158,32986.0,32984.0,0.0003923]
[1609614542112,0.18043158,32986.0,32985.0,0.0003923]
[1609614542713,0.18043158,32986.0,32983.0,0.00039227]
[1609614542915,0.17223,32993.0,32985.0,0.00039227]
[1609614543118,1.1599,33002.0,32985.0,0.15107]
[1609614543314,1.1599,33002.0,32995.0,0.18043158]
[1609614544316,0.1599,33002.0,32995.0,0.18043158]
[1609614545217,0.1599,33002.0,33001.0,0.18043158]
[1609614545616,0.1599,33002.0,33001.0,0.18082369]
[1609614547517,0.18043158,33010.0,33001.0,0.30939158]
[1609614547818,0.18043158,33010.0,33002.0,0.00039205]
[1609614548018,0.18043158,33010.0,33001.0,0.30939158]
[1609614549217,0.18043158,33002.0,33001.0,0.30939158]
[1609614549820,0.18043158,33002.0,33001.0,0.30978367]
[1609614550022,0.18043158,33002.0,33001.0,0.12935209]
[1609614550221,0.15043158,33002.0,33001.0,0.00039209]
[1609614550824,0.15043158,33002.0,32993.0,0.03759021]
[1609614551021,0.15043158,33002.0,33001.0,0.00039217]
[1609614551421,0.15043158,33002.0,32993.0,0.00039217]
[1609614551622,0.15043158,33002.0,33001.0,0.00039217]
[1609614551822,0.15043158,33002.0,32992.0,0.16012]
[1609614551823,0.15043158,33002.0,32994.0,0.00039217]
[1609614552223,0.15043158,33002.0,32987.0,0.03759263]
[1609614552424,0.15043158,33002.0,32995.0,0.00039217]
[1609614552623,0.15043158,33002.0,32988.0,0.00039219]
[1609614552923,0.15043158,33002.0,32996.0,0.00039219]
[1609614553123,0.15043158,33002.0,32996.0,0.10966]
[1609614553323,0.15562,33013.0,32998.0,0.18043158]
[1609614553723,0.15562,33013.0,32999.0,0.00039212]
[1609614553922,0.15562,33013.0,33002.0,0.01]
[1609614554524,0.15562,33013.0,33003.0,0.00039212]
[1609614554725,4.4809,33016.0,33003.0,0.00039212]
[1609614555228,4.4809,33016.0,33004.0,0.18043158]
[1609614556027,4.4809,33016.0,33005.0,0.00039212]
[1609614556428,4.4809,33016.0,33003.0,0.00039215]
[1609614556628,4.62133,33016.0,33006.0,0.00039213]
[1609614556827,4.62133,33016.0,33004.0,0.00039211]
[1609614557228,4.62133,33016.0,33009.0,0.18043158]
[1609614557429,4.62133,33016.0,33005.0,0.00039211]
[1609614557627,4.62133,33016.0,33004.0,0.00039211]
[1609614557930,4.62133,33016.0,33006.0,0.00039211]
[1609614558130,4.62133,33016.0,33005.0,0.00039211]
[1609614558528,4.62133,33016.0,33003.0,0.00039211]
[1609614558728,4.62133,33016.0,33006.0,0.00039211]
[1609614558928,4.62133,33016.0,33004.0,0.00039211]
[1609614559227,0.18043158,33005.0,33004.0,0.18043158]
[1609614559429,0.18043158,33005.0,33003.0,0.00039211]
[1609614559627,0.18043158,33005.0,33002.0,0.01]
[1609614559829,0.18043158,33005.0,33004.0,0.00039212]
[1609614560028,0.18043158,33005.0,33003.0,0.00039212]
[1609614560329,0.18043158,33005.0,33004.0,0.00039212]
[1609614560830,0.18043158,33005.0,33003.0,0.00039212]
[1609614561028,0.18043158,33005.0,33004.0,0.00039214]
[1609614561328,0.18043158,33005.0,33003.0,0.00039212]
[1609614561630,0.18043158,33005.0,33004.0,0.00039212]
[1609614561830,0.16043158,33005.0,33004.0,0.00039212]
[1609614562131,0.16043158,33005.0,33003.0,0.00039212]
[1609614562332,0.16043158,33005.0,33004.0,0.00039212]
[1609614562932,0.16043158,33005.0,33003.0,0.03758647]
[1609614563134,0.16043158,33005.0,33004.0,0.00039212]
[1609614563335,0.16043158,33005.0,32996.0,0.11573979]
[1609614563534,0.16043158,33005.0,33003.0,0.03719514]
[1609614563735,0.16043158,33005.0,32997.0,0.0375861]
[1609614563934,0.16043158,33005.0,33004.0,0.00039207]
[1609614564235,0.16043158,33005.0,32998.0,0.03758773]
[1609614564436,0.25033158,33005.0,32998.0,0.03719566]
[1609614564636,0.16043158,33005.0,33004.0,0.00039208]
[1609614564837,0.16043158,33005.0,32999.0,0.03758732]
[1609614565036,0.16043158,33005.0,33004.0,0.00039208]
[1609614565236,0.16043158,33005.0,33000.0,0.0375873]
[1609614565436,0.16043158,33005.0,33001.0,0.18043158]
[1609614565635,0.16043158,33005.0,33004.0,0.00039208]
[1609614565837,0.16043158,33005.0,33002.0,0.03758729]
[1609614566135,0.16043158,33005.0,33004.0,0.00039208]
[1609614566536,0.16043158,33005.0,33003.0,0.00039206]
[1609614566734,0.16043158,33005.0,33002.0,0.03719521]
[1609614567135,0.16043158,33005.0,33002.0,0.03758728]
[1609614568737,0.16043158,33005.0,32993.0,0.03758626]
[1609614568937,0.16043158,33005.0,33003.0,0.03758609]
[1609614569237,0.16043158,33005.0,32994.0,0.03758589]
[1609614569437,0.14982,33009.0,32999.0,0.18043158]
[1609614569637,4.62133,33016.0,33004.0,0.03758665]
[1609614569837,4.62133,33016.0,33000.0,0.03758685]
[1609614570038,4.62133,33016.0,33005.0,0.03758668]
[1609614570337,4.62133,33016.0,33001.0,0.03758729]
[1609614570538,4.62133,33016.0,33006.0,0.00039207]
[1609614570840,4.62133,33016.0,32993.0,0.03758697]
[1609614571040,4.62133,33016.0,33007.0,0.00039207]
[1609614571339,0.18043158,33008.0,32998.0,0.18043158]
[1609614571739,0.18043158,33008.0,32993.0,0.0371949]
[1609614571940,0.35243158,33008.0,32999.0,0.03758698]
[1609614572141,0.35243158,33008.0,32993.0,0.03758755]
[1609614572341,0.35243158,33008.0,33000.0,0.03758661]
[1609614572639,0.35243158,33008.0,32994.0,0.0375868]
[1609614573043,0.35243158,33008.0,33001.0,0.03758652]
[1609614573241,0.35243158,33008.0,32995.0,0.03758693]
[1609614573444,0.172,33008.0,33002.0,0.03758675]
[1609614573741,0.172,33008.0,33000.0,0.03758678]
[1609614574042,0.172,33008.0,33003.0,0.03758636]
[1609614574240,0.172,33008.0,33001.0,0.03758621]
[1609614574643,0.172,33008.0,33000.0,0.03758576]
[1609614574841,0.172,33008.0,33002.0,0.0375856]
[1609614575041,0.172,33008.0,33001.0,0.03758504]
[1609614575342,0.172,33008.0,33006.0,0.18043158]
[1609614575743,0.172,33008.0,33002.0,0.03758463]
[1609614575943,0.172,33008.0,33007.0,0.03758489]
[1609614576141,0.172,33008.0,33003.0,0.03758492]
[1609614576342,0.7891,33008.0,33007.0,0.03758536]
[1609614576642,0.7891,33008.0,32993.0,0.03719421]
[1609614576843,0.7891,33008.0,33007.0,0.03758579]
[1609614577145,0.7891,33008.0,32993.0,0.03758643]
[1609614577343,0.7891,33008.0,33005.0,0.18043158]
[1609614577545,0.7891,33008.0,33007.0,0.03758608]
[1609614577745,0.7891,33008.0,33006.0,0.03758485]
[1609614577944,0.7891,33008.0,33007.0,0.03758443]
[1609614578547,0.7891,33008.0,33006.0,0.03758581]
[1609614578747,0.7891,33008.0,33007.0,0.03758643]
[1609614579248,0.7891,33008.0,32993.0,0.03758618]
[1609614579447,0.7891,33008.0,32998.0,0.18043158]
[1609614579848,0.7891,33008.0,32999.0,0.03758545]
[1609614581354,0.7891,33008.0,33002.0,0.18043158]
[1609614581652,0.7891,33008.0,33003.0,0.03758533]
[1609614582553,0.7891,33008.0,32993.0,0.11197627]
[1609614582754,0.7891,33008.0,33004.0,0.037588]
[1609614582953,0.7891,33008.0,32994.0,0.03758794]
[1609614583256,0.7891,33008.0,32993.0,0.11197553]
[1609614583455,0.7891,33008.0,32995.0,0.0375879]
[1609614583755,0.7891,33008.0,32993.0,0.11197523]
[1609614584155,0.7891,33008.0,32996.0,0.03758757]
[1609614584355,0.7891,33008.0,32994.0,0.03758747]
[1609614584557,0.7891,33008.0,32997.0,0.03758757]
[1609614584858,0.7891,33008.0,32995.0,0.03758873]
[1609614585057,0.7891,33008.0,32998.0,0.03758846]
[1609614585457,0.18043158,32999.0,32998.0,0.18043158]
[1609614585858,0.18043158,32999.0,32998.0,0.21802007]
[1609614590563,0.18043158,32999.0,32998.0,0.18043158]
[1609614590864,0.18043158,32999.0,32998.0,0.21801833]
[1609614598974,0.1,33000.0,32998.0,0.21801833]
[1609614599274,0.1,33000.0,32998.0,0.29240705]
[1609614599674,0.1,33000.0,32999.0,0.03758377]
[1609614599874,0.1,33000.0,32999.0,0.17046377]
[1609614600073,1.14043,33016.0,32999.0,0.17046377]
[1609614600281,1.0,33016.0,32999.0,0.17046377]
[1609614600483,0.00378641,33019.0,33000.0,0.03757905]
[1609614600879,0.00378641,33019.0,33000.0,0.02757905]
[1609614601176,0.00378641,33019.0,33001.0,0.03757584]
[1609614601481,0.18043158,33018.0,33016.0,0.18043158]
[1609614601879,0.18043158,33018.0,33017.0,0.00038912]
[1609614602077,0.18043158,33018.0,33017.0,0.03757408]
[1609614602276,0.18043158,33018.0,33017.0,0.16627912]
[1609614602877,0.18043158,33018.0,33017.0,0.19346376]
[1609614603080,0.18043158,33018.0,33017.0,0.14067912]
[1609614604581,3.59343158,33018.0,33017.0,0.13067912]
[1609614605585,0.18080356,33018.0,33012.0,2.02999631]
[1609614605784,8.8206,33016.0,33008.0,2.21454143]
[1609614605986,3.9712,33014.0,33013.0,0.00038926]
[1609614606386,3.97157202,33014.0,33003.0,0.00038928]
[1609614606584,0.00037202,33014.0,33003.0,0.00038928]
[1609614606786,0.00037202,33014.0,33013.0,0.0003893]
[1609614606986,0.00037202,33013.0,33004.0,0.0003893]
[1609614607187,3.9567,33014.0,33002.0,2.0302459]
[1609614607486,0.00037205,33013.0,33005.0,0.00038931]
[1609614607686,0.00037205,33013.0,33003.0,0.00038931]
[1609614608286,1.0,33004.0,33003.0,0.00038931]
[1609614608489,1.6274,33004.0,33003.0,0.00038931]
[1609614609091,1.6274,33004.0,33001.0,0.00038931]
[1609614609290,1.6274,33004.0,33003.0,0.00038931]
[1609614609491,1.80783158,33004.0,33003.0,0.00038931]
[1609614609691,1.80783158,33004.0,33002.0,0.00038931]
[1609614609890,1.18043158,33004.0,33003.0,0.00038931]
[1609614610290,4.79553158,33004.0,33003.0,0.00038931]
[1609614610491,4.79553158,33004.0,33001.0,0.00038931]
[1609614610691,4.79553158,33004.0,33003.0,0.00038931]
[1609614610892,0.18043158,33004.0,33002.0,0.00038931]
[1609614611094,3.6553,33003.0,33002.0,0.00038931]
[1609614611293,3.6553,33003.0,33000.0,0.1]
[1609614611492,3.6553,33003.0,33002.0,0.0003893]
[1609614611691,3.6553,33003.0,33001.0,0.0003893]
[1609614611993,3.6553,33003.0,33002.0,0.0003893]
[1609614612193,3.6553,33003.0,33002.0,0.00038931]
[1609614612393,0.18043158,33004.0,32992.0,0.16473]
[1609614612593,3.4644,33003.0,32987.0,2.02967245]
[1609614612794,3.63305,33003.0,33001.0,0.00038938]
[1609614612994,0.00037216,33002.0,32988.0,0.00038941]
[1609614613595,0.18043158,32989.0,32988.0,0.00038941]
[1609614613794,0.33937158,32989.0,32985.0,0.00038949]
[1609614613994,3.8938,32986.0,32985.0,0.00038949]
[1609614614193,3.8938,32986.0,32984.0,1.92936989]
[1609614614395,0.33937158,32989.0,32984.0,1.92936989]
[1609614614595,4.679,32985.0,32984.0,1.92936989]
[1609614614797,4.679,32985.0,32984.0,0.00038954]
[1609614614995,5.679,32985.0,32961.0,2.21117805]
[1609614615395,1.0,32985.0,32962.0,0.00038952]
[1609614615595,4.39073158,32963.0,32962.0,0.00038952]
[1609614615797,5.39073158,32963.0,32962.0,0.00038952]
[1609614615995,5.55239158,32963.0,32945.0,2.36498212]
[1609614616197,1.34209158,32963.0,32962.0,0.00038959]
[1609614616395,7.34209158,32963.0,32962.0,0.00038959]
[1609614616595,12.42009158,32963.0,32962.0,0.00038959]
[1609614616796,12.42009158,32963.0,32946.0,0.00038961]
[1609614616996,7.34209158,32963.0,32946.0,0.00038961]
[1609614617197,4.5328,32957.0,32946.0,0.00038961]
[1609614617397,1.0,32956.0,32946.0,0.00038961]
[1609614617598,0.18043158,32947.0,32946.0,0.00038961]
[1609614617797,5.40883158,32947.0,32946.0,0.00038961]
[1609614618598,1.18043158,32947.0,32946.0,0.00038961]
[1609614619198,1.0,32947.0,32946.0,0.00038961]
[1609614619599,1.0,32947.0,32946.0,0.18082119]
[1609614620299,1.0,32958.0,32946.0,0.18082119]
[1609614620699,1.0,32958.0,32947.0,0.00038947]
[1609614621101,0.00356427,32957.0,32947.0,0.00038947]
[1609614621403,1.0,32958.0,32947.0,0.00038947]
[1609614621601,1.18043158,32958.0,32957.0,0.18043158]
[1609614621803,1.18043158,32958.0,32957.0,0.28791158]
[1609614622002,1.18043158,32958.0,32957.0,0.288301]
[1609614623404,1.18043158,32958.0,32957.0,0.10786942]
[1609614625205,1.18043158,32958.0,32957.0,0.13786942]
[1609614626006,1.18043158,32958.0,32957.0,0.03038942]
[1609614626207,1.72923158,32958.0,32957.0,0.03]
[1609614626407,1.72923158,32958.0,32945.0,0.15558]
[1609614626607,1.18043158,32958.0,32911.0,0.2753]
[1609614627006,5.0664,32934.0,32912.0,0.03763256]
[1609614627209,1.0,32933.0,32912.0,0.00038958]
[1609614627609,1.0,32933.0,32917.0,0.18043158]
[1609614627810,1.0,32933.0,32917.0,0.12666]
[1609614628009,1.0,32933.0,32918.0,0.00038969]
[1609614629513,1.0,32933.0,32924.0,0.18043158]
[1609614629915,1.0,32933.0,32918.0,0.00038969]
[1609614630116,1.0,32933.0,32917.0,0.12666]
[1609614630317,4.6982,32918.0,32917.0,0.12666]
[1609614630516,1.0,32918.0,32917.0,0.12666]
[1609614631220,1.0,32918.0,32917.0,0.1270497]
[1609614631422,1.0,32918.0,32917.0,0.12666]
[1609614631620,1.18043158,32918.0,32917.0,0.12666]
[1609614631822,1.18043158,32918.0,32917.0,0.12704971]
[1609614632021,1.18043158,32918.0,32917.0,0.12666]
[1609614632925,1.18043158,32918.0,32915.0,0.18043158]
[1609614635527,1.0,32919.0,32915.0,0.18043158]
[1609614635727,0.18043158,32925.0,32915.0,0.18043158]
[1609614635927,0.18043158,32925.0,32916.0,0.00038973]
[1609614636730,1.0,32927.0,32916.0,0.00038973]
[1609614636930,0.11985,32935.0,32916.0,0.00038973]
[1609614637129,1.11985,32935.0,32916.0,0.00038973]
[1609614637831,4.74,32931.0,32916.0,0.00038973]
[1609614638030,1.0,32930.0,32915.0,0.00038973]
[1609614638233,1.0,32930.0,32915.0,2.006968]
[1609614638432,1.0,32930.0,32917.0,0.00038973]
[1609614638633,1.0,32930.0,32916.0,0.00038973]
[1609614638831,1.0,32930.0,32915.0,2.00657827]
[1609614639032,1.0,32930.0,32914.0,0.18043158]
[1609614639231,1.0,32930.0,32917.0,0.00038981]
[1609614639432,1.0,32930.0,32916.0,0.00038981]
[1609614639630,1.0,32930.0,32914.0,0.18043158]
[1609614639631,1.0,32930.0,32915.0,0.00038981]
[1609614639931,1.0,32930.0,32917.0,0.00038981]
[1609614640132,1.0,32930.0,32914.0,0.18043158]
[1609614640133,1.0,32930.0,32916.0,0.00038981]
[1609614640531,1.0,32930.0,32915.0,0.00038981]
[1609614640733,1.0,32930.0,32917.0,0.00038981]
[1609614640934,1.0,32930.0,32916.0,0.00038983]
[1609614641232,1.0,32930.0,32915.0,0.00038983]
[1609614641434,1.0,32930.0,32917.0,0.00038985]
[1609614641633,0.18043158,32918.0,32917.0,0.00038985]
[1609614641835,1.18043158,32918.0,32916.0,0.00038985]
[1609614642037,1.18043158,32918.0,32906.0,0.33551158]
[1609614642235,4.4139,32912.0,32906.0,0.33551158]
[1609614642435,1.0,32911.0,32906.0,0.33551158]
[1609614642636,1.0,32911.0,32907.0,0.00038989]
[1609614643637,0.18043158,32908.0,32907.0,0.00038989]
[1609614643837,1.18043158,32908.0,32907.0,0.00038989]
[1609614644136,1.18043158,32908.0,32905.0,0.00038996]
[1609614644337,1.18043158,32908.0,32907.0,0.00038996]
[1609614644738,1.0,32908.0,32906.0,0.00038996]
[1609614644938,1.0,32907.0,32904.0,0.18043158]
[1609614645441,1.0,32907.0,32905.0,0.00038993]
[1609614645641,0.18043158,32906.0,32905.0,0.00038993]
[1609614645842,1.18043158,32906.0,32905.0,0.00038993]
[1609614646043,1.79273158,32906.0,32905.0,0.00038993]
[1609614646643,1.79273158,32906.0,32901.0,0.00038995]
[1609614646844,1.79273158,32906.0,32905.0,0.00038995]
[1609614647045,1.79273158,32906.0,32902.0,0.00038993]
[1609614647246,1.79273158,32906.0,32905.0,0.00038993]
[1609614647545,1.79273158,32906.0,32901.0,0.00038993]
[1609614647747,0.18043158,32902.0,32901.0,0.00038993]
[1609614647946,1.18043158,32902.0,32901.0,0.00038993]
[1609614649647,0.18043158,32902.0,32901.0,0.00038993]
[1609614649846,1.18043158,32902.0,32901.0,0.00038993]
[1609614651146,1.0,32902.0,32901.0,0.00038993]
[1609614651648,1.18043158,32902.0,32901.0,0.00038993]
[1609614654549,1.18043158,32902.0,32901.0,0.03766079]
[1609614656050,1.0,32902.0,32901.0,0.03766079]
[1609614656451,1.0,32916.0,32901.0,0.03766079]
[1609614657852,1.0,32916.0,32915.0,0.18043158]
[1609614658262,1.0,32923.0,32915.0,0.18043158]
[1609614658461,1.0,32923.0,32915.0,0.18082145]
[1609614658655,1.0,32923.0,32916.0,0.00038985]
[1609614658854,1.0,32923.0,32916.0,0.0376488]
[1609614659258,1.0,32922.0,32916.0,0.0376488]
[1609614659859,0.18043158,32917.0,32916.0,0.0376488]
[1609614660256,3.6832,32933.0,32916.0,0.0376488]
[1609614660257,1.0,32932.0,32916.0,0.0376488]
[1609614661257,1.0,32943.0,32916.0,0.0376488]
[1609614661858,1.0,32943.0,32931.0,0.18043158]
[1609614662059,1.0,32943.0,32932.0,0.00038976]
[1609614662257,1.0,32942.0,32932.0,0.00038976]
[1609614662458,1.17204,32942.0,32932.0,0.00038976]
[1609614662857,1.15204,32942.0,32932.0,0.00038976]
[1609614663057,1.13544,32942.0,32932.0,0.00038976]
[1609614663258,0.17204,32942.0,32932.0,0.00038976]
[1609614663461,0.9634,32950.0,32932.0,0.00038976]
[1609614663660,0.9634,32950.0,32932.0,0.10780976]
[1609614663859,0.9634,32950.0,32946.0,0.18043158]
[1609614664259,0.9634,32950.0,32947.0,0.00038966]
[1609614665262,0.9634,32959.0,32947.0,0.00038966]
[1609614665862,0.9634,32959.0,32951.0,0.18043158]
[1609614666061,0.9634,32959.0,32952.0,0.00038958]
[1609614666262,0.9634,32960.0,32952.0,0.00038958]
[1609614666464,0.9634,32960.0,32951.0,0.15082116]
[1609614667062,0.9634,32960.0,32942.0,0.11604]
[1609614667463,0.9634,32960.0,32943.0,0.00038952]
[1609614667964,0.9634,32960.0,32947.0,0.18043158]
[1609614668164,0.9634,32960.0,32948.0,0.00038952]
[1609614669665,0.9634,32960.0,32951.0,0.1]
[1609614669870,0.18043158,32952.0,32951.0,0.1]
[1609614670068,1.14383158,32952.0,32951.0,0.1]
[1609614670268,1.14383158,32952.0,32951.0,0.10038953]
[1609614673976,0.18043158,32952.0,32951.0,0.10038953]
[1609614675077,0.18043158,32952.0,32951.0,0.1]
[1609614675281,0.18043158,32952.0,32951.0,0.10038953]
[1609614675777,0.18043158,32952.0,32951.0,0.28082111]
[1609614676379,3.5065,32957.0,32951.0,0.28082111]
[1609614676979,3.5065,32957.0,32952.0,0.0003895]
[1609614677180,4.4699,32957.0,32952.0,0.0003895]
[1609614677781,4.4699,32957.0,32956.0,0.18043158]
[1609614677981,0.9634,32957.0,32956.0,0.18043158]
[1609614678181,0.9634,32963.0,32956.0,0.18082104]
[1609614678583,0.9634,32963.0,32957.0,0.00038946]
[1609614679783,0.9634,32963.0,32961.0,0.18043158]
[1609614680284,0.9634,32963.0,32962.0,0.00038946]
[1609614680785,0.9634,32963.0,32952.0,0.00038948]
[1609614681788,0.9634,32963.0,32957.0,0.18043158]
[1609614682090,0.9634,32963.0,32958.0,0.00038948]
[1609614683892,0.18043158,32959.0,32958.0,0.00038948]
[1609614684089,1.14383158,32959.0,32958.0,0.00038948]
[1609614686293,1.14383158,32959.0,32958.0,0.03761963]
[1609614687097,1.14383158,32959.0,32951.0,0.1]
[1609614687497,1.14383158,32959.0,32952.0,0.00038571]
[1609614687795,4.18563158,32953.0,32952.0,0.00038571]
[1609614687995,5.14903158,32953.0,32952.0,0.00038571]
[1609614688398,6.14903158,32953.0,32952.0,0.00038571]
[1609614692803,2.14383158,32953.0,32952.0,0.00038571]
[1609614693902,2.14383158,32953.0,32951.0,0.1]
[1609614694702,0.01,32951.0,32942.0,0.11604]
[1609614694903,7.6701,32951.0,32923.0,0.1643]
[1609614695103,0.9634,32950.0,32943.0,0.0003859]
[1609614695304,0.9634,32950.0,32933.0,0.00038595]
[1609614695508,4.5456,32934.0,32933.0,0.15839]
[1609614695705,5.509,32934.0,32933.0,0.15839]
[1609614695906,5.68943158,32934.0,32933.0,0.15839]
[1609614696105,5.68943158,32934.0,32933.0,0.15877594]
[1609614696505,5.68943158,32934.0,32933.0,0.00038594]
[1609614696704,5.68943158,32934.0,32910.0,0.12997]
[1609614696705,1.14383158,32934.0,32910.0,0.12997]
[1609614696905,3.831,32933.0,32903.0,0.18043158]
[1609614697107,0.9634,32932.0,32911.0,0.00038601]
[1609614697507,0.9634,32932.0,32904.0,0.03765309]
[1609614697508,0.0121723,32926.0,32904.0,0.03765309]
[1609614697707,0.1825323,32926.0,32912.0,0.00038601]
[1609614697909,0.18043158,32913.0,32905.0,0.00038601]
[1609614698110,0.9634,32912.0,32905.0,0.00038601]
[1609614698310,0.9634,32912.0,32903.0,0.18043158]
[1609614698510,0.9634,32912.0,32906.0,0.00038607]
[1609614698710,0.9634,32912.0,32904.0,0.00038607]
[1609614698911,0.9634,32912.0,32906.0,0.12892]
[1609614699111,0.9634,32912.0,32907.0,0.00038605]
[1609614699812,0.18043158,32908.0,32907.0,0.18081763]
[1609614700013,1.14383158,32908.0,32907.0,0.18081763]
[1609614700213,1.14383158,32908.0,32906.0,0.11930605]
[1609614700815,1.14383158,32908.0,32907.0,0.00038799]
[1609614702418,1.14383158,32908.0,32900.0,0.00038799]
[1609614702619,1.14383158,32908.0,32907.0,0.00038799]
[1609614703020,1.14383158,32908.0,32901.0,0.00038799]
[1609614703221,1.14383158,32908.0,32907.0,0.00038798]
[1609614703419,1.14383158,32908.0,32902.0,0.00038798]
[1609614703720,1.14383158,32908.0,32907.0,0.00038798]
[1609614704121,1.14383158,32908.0,32904.0,0.18043158]
[1609614704323,1.14383158,32908.0,32907.0,0.00038798]
[1609614704521,1.14383158,32908.0,32905.0,0.00038798]
[1609614704822,1.14383158,32908.0,32900.0,0.00038798]
[1609614705022,1.14383158,32908.0,32906.0,0.00038798]
[1609614705322,1.14383158,32908.0,32901.0,0.00038798]
[1609614705522,1.14383158,32908.0,32907.0,0.00038798]
[1609614705825,1.14383158,32908.0,32902.0,0.00038798]
[1609614706023,1.23413158,32908.0,32902.0,0.00038798]
[1609614706225,1.23413158,32908.0,32907.0,0.00038798]
[1609614706424,1.23413158,32908.0,32903.0,0.00038798]
[1609614706626,1.23413158,32908.0,32907.0,0.00038798]
[1609614706826,1.14383158,32908.0,32907.0,0.00038798]
[1609614707025,1.14383158,32908.0,32901.0,0.00038798]
[1609614707224,1.14383158,32908.0,32907.0,0.00038798]
[1609614707424,1.14383158,32908.0,32901.0,0.00038798]
[1609614707625,1.14383158,32908.0,32907.0,0.00038798]
[1609614707824,1.23583158,32908.0,32907.0,0.00038798]
[1609614708024,1.23583158,32908.0,32906.0,0.1202]
[1609614708225,1.23583158,32908.0,32907.0,0.00038798]
[1609614708426,1.14383158,32908.0,32907.0,0.00038798]
[1609614708926,1.14383158,32908.0,32850.0,1.34935956]
[1609614709126,1.14383158,32908.0,32903.0,0.16896]
[1609614709528,1.14383158,32908.0,32904.0,0.00038795]
[1609614713432,3.9504,32905.0,32899.0,0.12827]
[1609614713629,0.9634,32904.0,32899.0,0.02827]
[1609614713832,4.5386,32900.0,32899.0,0.02827]
[1609614714031,5.68243158,32900.0,32899.0,0.02865262]
[1609614714432,5.68243158,32900.0,32849.0,0.0745908]
[1609614714633,0.291,32899.0,32849.0,0.0745908]
[1609614714834,0.9634,32898.0,32811.0,0.1771]
[1609614715036,0.9634,32898.0,32850.0,0.03769852]
[1609614715234,4.3663,32872.0,32850.0,0.03769852]
[1609614715437,5.0175,32851.0,32849.0,0.03770004]
[1609614715636,0.9634,32850.0,32794.0,1.0635]
[1609614715836,0.9634,32850.0,32849.0,3.29557198]
[1609614716035,1.14383158,32850.0,32849.0,3.29557198]
[1609614716234,1.14383158,32850.0,32849.0,3.29557199]
[1609614717639,1.14383158,32850.0,32849.0,0.00038285]
[1609614717841,0.00995201,32842.0,32794.0,0.356]
[1609614718040,0.00995201,32842.0,32841.0,0.18043158]
[1609614718240,0.00995201,32842.0,32841.0,0.32617158]
[1609614718441,0.13298,32860.0,32841.0,0.32617158]
[1609614718641,0.13298,32860.0,32841.0,0.32655456]
[1609614718840,1.0,32861.0,32842.0,0.00038293]
[1609614719942,0.01189907,32864.0,32854.0,0.18043158]
[1609614720142,0.01189907,32864.0,32854.0,0.35040158]
[1609614720344,0.01189907,32864.0,32855.0,0.00038291]
[1609614720543,0.01189907,32864.0,32854.0,0.35040158]
[1609614720743,0.01189907,32864.0,32855.0,0.0003829]
[1609614722047,0.01189907,32864.0,32863.0,0.18043158]
[1609614722247,0.01189907,32864.0,32863.0,0.29190158]
[1609614722447,0.01189907,32864.0,32863.0,0.29228443]
[1609614723048,0.72733075,32870.0,32863.0,0.29228443]
[1609614723650,1.15701945,32883.0,32863.0,0.29228443]
[1609614723651,0.73091612,32880.0,32864.0,0.00038273]
[1609614724048,0.73091612,32880.0,32879.0,0.18043158]
[1609614724549,0.18043158,32881.0,32879.0,0.18043158]
[1609614724949,0.18043158,32881.0,32879.0,0.17857376]
[1609614725149,0.73524187,32893.0,32879.0,0.17857376]
[1609614726050,0.73524187,32893.0,32888.0,0.18043158]
[1609614726253,0.73535874,32894.0,32878.0,0.11786]
[1609614726453,1.73535874,32894.0,32878.0,0.11786]
[1609614727353,0.73535874,32894.0,32878.0,0.11786]
[1609614727554,0.73596927,32897.0,32879.0,0.00038261]
[1609614727953,0.18043158,32888.0,32887.0,0.18043158]
[1609614728354,0.73596927,32897.0,32887.0,0.18043158]
[1609614728854,0.73596927,32897.0,32888.0,0.00038254]
[1609614729855,0.54696927,32897.0,32888.0,0.00038254]
[1609614730056,0.54696927,32897.0,32896.0,0.18043158]
[1609614730257,0.54696927,32897.0,32896.0,0.34178158]
[1609614730857,0.8401881,32905.0,32896.0,0.34178158]
[1609614731457,0.8401881,32905.0,32897.0,0.00038246]
[1609614731857,0.8401881,32905.0,32896.0,0.34178158]
[1609614732058,0.18043158,32898.0,32896.0,0.34178158]
[1609614732962,1.0,32912.0,32896.0,0.34178158]
[1609614733363,1.0,32912.0,32897.0,0.00038246]
[1609614733561,0.44566367,32918.0,32897.0,0.00038246]
[1609614733962,0.44566367,32918.0,32917.0,0.18043158]
[1609614734261,0.44566367,32918.0,32917.0,0.33321158]
[1609614735964,0.18043158,32919.0,32917.0,0.33321158]
[1609614738968,0.2813,32923.0,32917.0,0.33321158]
[1609614740069,0.2813,32923.0,32922.0,0.18043158]
[1609614740671,0.2813,32923.0,32917.0,0.15278]
[1609614740869,0.2813,32923.0,32896.0,0.16135]
[1609614741071,0.2813,32923.0,32886.0,0.13114]
[1609614741270,0.2813,32923.0,32897.0,0.00038223]
[1609614741470,0.2813,32923.0,32887.0,0.00038223]
[1609614741670,0.2813,32923.0,32897.0,0.11913]
[1609614741869,0.2813,32923.0,32898.0,0.00038221]
[1609614742071,0.2813,32923.0,32922.0,0.18043158]
[1609614742369,0.2813,32923.0,32922.0,0.31766158]
[1609614743570,0.2813,32923.0,32922.0,0.13723]
[1609614744072,0.2813,32923.0,32922.0,0.31766158]